[Event "XXVII RUS-chT Women 2020"]
[Site "Sochi"]
[Date "2020.11.20"]
[Round "2.2"]
[White "Gritsayeva, Oksana"]
[Black "Girya, Olga"]
[Result "0-1"]
[ECO "B11"]
[WhiteElo "2351"]
[BlackElo "2469"]
[Annotator "ChessBase"]
[PlyCount "118"]
[EventDate "2020.11.19"]
[EventType "team-tourn"]
[EventCountry "RUS"]
[SourceTitle "playchess.com"]
[Source "ChessBase"]
[SourceQuality "1"]
[TimeControl "40/5400+30:1800+30"]

1. e4 {[%emt 0:00:00]} c6 {[%emt 0:00:00]} 2. Nf3 {[%emt 0:00:00]} d5 {[%emt 0:00:00]} 3. Nc3 {[%emt 0:00:00]} Bg4 {[%emt 0:00:00]} 4. Be2 {[%emt 0:00:00]} e6 {[%emt 0:00:10]} 5. d4 {[%emt 0:01:40]} Be7 {[%emt 0:00:22]} 6. h3 {[%emt 0:01:16]} Bh5 {[%emt 0:00:06]} 7. Ne5 {[%emt 0:09:19]} Bxe2 {[%emt 0:00:21]} 8. Qxe2 {[%emt 0:00:06]} Nf6 {[%emt 0:00:15]} 9. exd5 {[%emt 0:07:11]} cxd5 {[%emt 0:26:26]} 10. Qb5+ {[%emt 0:13:43]} Nbd7 {[%emt 0:00:08]} 11. Bg5 {[%emt 0:06:40]} h6 {[%emt 0:12:32]} 12. Bxf6 {[%emt 0:10:11]} Bxf6 {[%emt 0:01:18]} 13. Nxd7 {[%emt 0:02:28]} Qxd7 {[%emt 0:00:05]} 14. Qxd7+ {[%emt 0:01:09]} Kxd7 {[%emt 0:00:02]} 15. Ne2 {[%emt 0:02:44]} Rac8 {[%emt 0:02:56]} 16. c3 {[%emt 0:01:53]} h5 {[%emt 0:04:50]} 17. Nf4 {[%emt 0:02:32]} Be7 {[%emt 0:00:59]} 18. Nd3 {[%emt 0:01:08]} Bd6 {[%emt 0:00:07]} 19. Kd2 {[%emt 0:04:43]} h4 {[%emt 0:03:35]} 20. Rhe1 {[%emt 0:08:03]} Rh5 {[%emt 0:06:04]} 21. Ke2 {[%emt 0:09:49]} f6 {[%emt 0:04:01]} 22. Rad1 {[%emt 0:01:33]} Rf5 {[%emt 0:16:32]} 23. Nc1 {[%emt 0:04:24]} Rh8 {[%emt 0:04:15]} 24. Kf1 {[%emt 0:01:46]} Rh6 {[%emt 0:03:17]} 25. Re2 {[%emt 0:01:39]} Rg6 {[%emt 0:02:39]} 26. Nb3 {[%emt 0:00:45]} Rfg5 {[%emt 0:01:32]} 27. f3 {[%emt 0:00:11]} b6 {[%emt 0:00:26]} 28. Na1 {[%emt 0:00:56]} Rh6 {[%emt 0:02:30]} 29. Nc2 {[%emt 0:00:14]} Rh8 {[%emt 0:00:18]} 30. Ne3 {[%emt 0:01:09]} Rc8 {[%emt 0:00:38]} 31. Ng4 {[%emt 0:01:00]} Rh5 {[%emt 0:00:16]} 32. Rd3 {[%emt 0:01:13]} Rc6 {[%emt 0:02:17]} 33. Ne3 {[%emt 0:00:50]} b5 {[%emt 0:01:22]} 34. a3 {[%emt 0:00:16]} Rh8 {[%emt 0:02:00]} 35. Nc2 {[%emt 0:00:25]} a5 {[%emt 0:00:12]} 36. Ke1 {[%emt 0:00:54]} Rhc8 {[%emt 0:02:12]} 37. Kd1 {[%emt 0:00:31]} Bf4 {[%emt 0:00:38]} 38. Na1 {[%emt 0:01:32]} b4 {[%emt 0:00:43]} 39. axb4 {[%emt 0:01:50]} axb4 {[%emt 0:00:01]} 40. Nb3 {[%emt 0:00:00]} bxc3 {[%emt 0:00:00]} 41. Rxc3 {[%emt 0:02:58]} Rxc3 {[%emt 0:07:35]} 42. bxc3 {[%emt 0:00:08]} Rxc3 {[%emt 0:00:37]} 43. Nc5+ {[%emt 0:01:37]} Kc6 {[%emt 0:00:14]} 44. Rxe6+ {[%emt 0:10:00]} Kb5 {[%emt 0:00:07]} 45. Re7 {[%emt 0:06:02]} Rc1+ {[%emt 0:02:13]} 46. Ke2 {[%emt 0:00:04]} Rc2+ {[%emt 0:00:07]} 47. Kf1 {[%emt 0:02:35]} Bg3 {[%emt 0:03:19]} 48. Rxg7 {[%emt 0:00:46]} Kc4 {[%emt 0:00:54]} 49. f4 {[%emt 0:08:27]} Rf2+ {[%emt 0:02:49]} 50. Ke1 {[%emt 0:00:19]} Kxd4 {[%emt 0:02:16]} 51. Nb3+ {[%emt 0:01:34]} Kc3 {[%emt 0:00:27]} 52. Nc5 {[%emt 0:00:44]} Rb2+ {[%emt 0:03:00]} 53. Kd1 {[%emt 0:01:26]} Rd2+ {[%emt 0:00:15]} 54. Kc1 {[%emt 0:00:12]} Rxg2 {[%emt 0:00:14]} 55. Kb1 {[%emt 0:00:33]} Rb2+ {[%emt 0:04:19]} 56. Ka1 {[%emt 0:00:11]} Rb4 {[%emt 0:01:05]} 57. Rd7 {[%emt 0:01:40]} Kc2 {[%emt 0:02:15]} 58. Rxd5 {[%emt 0:01:16]} Rc4 {[%emt 0:03:17]} 59. Ka2 {[%emt 0:02:00]} Bf2 {[%emt 0:00:24]} 0-1

[Event "XXVII RUS-chT Women 2020"]
[Site "Sochi"]
[Date "2020.11.20"]
[Round "2.3"]
[White "Badelka, Olga"]
[Black "Tomilova, Elena"]
[Result "1-0"]
[ECO "A04"]
[WhiteElo "2427"]
[BlackElo "2358"]
[Annotator "NA"]
[PlyCount "83"]
[EventDate "2020.11.19"]
[EventType "team-tourn"]
[EventCountry "RUS"]
[SourceTitle "playchess.com"]
[Source "ChessBase"]
[SourceQuality "1"]
[TimeControl "40/5400+30:1800+30"]

1. Nf3 {[%emt 0:00:00]} c5 {[%emt 0:00:00]} 2. c4 {[%emt 0:02:21]} Nc6 {[%emt 0:00:01]} 3. Nc3 {[%emt 0:00:05]} g6 {[%emt 0:00:06]} 4. e3 {[%emt 0:00:52]} Nf6 {[%emt 0:01:15]} 5. d4 {[%emt 0:01:08]} cxd4 {[%emt 0:00:07]} 6. exd4 {[%emt 0:00:04]} d5 {[%emt 0:00:16]} 7. cxd5 {[%emt 0:01:06]} Nxd5 {[%emt 0:00:10]} 8. Qb3 {[%emt 0:00:04]} Nxc3 {[%emt 0:00:27]} 9. Bc4 {[%emt 0:00:06]} e6 {[%emt 0:00:15]} 10. bxc3 {[%emt 0:00:19]} Bg7 {[%emt 0:00:34]} 11. Ba3 {[%emt 0:02:20]} Bf8 {[%emt 0:02:21]} 12. Bxf8 {[%emt 0:01:17]} Kxf8 {[%emt 0:00:14]} 13. O-O {[%emt 0:00:41]} Kg7 {[%emt 0:04:40]} 14. Be2 {[%emt 0:02:14]} b6 {[%emt 0:07:18]} 15. Rfd1 {[%emt 0:09:06]} Bb7 {[%emt 0:02:23]} 16. c4 {[%emt 0:04:54]} Qf6 {[%emt 0:03:58]} 17. Rd2 {[%emt 0:06:08]} Rac8 {[%emt 0:01:48]} 18. Qe3 {[%emt 0:06:44]} Ne7 {[%emt 0:09:28]} 19. Ne5 {[%emt 0:07:43]} Nf5 {[%emt 0:05:36]} 20. Qc3 $11 {[%emt 0:00:05]} Nd6 {[%emt 0:25:07]} 21. f3 {[%emt 0:03:44]} Rhe8 {[%emt 0:01:51]} 22. Re1 {[%emt 0:20:33]} h5 {[%emt 0:15:28]} 23. Bf1 {[%emt 0:03:29]} Red8 {[%emt 0:02:22]} 24. Qa3 {[%emt 0:01:26]} Qf4 {[%emt 0:03:43]} 25. Rdd1 {[%emt 0:01:32]} Ra8 {[%emt 0:07:52]} 26. c5 {[%emt 0:04:55]} Nf5 {[%emt 0:00:58]} 27. c6 {[%emt 0:01:17]} Bc8 {[%emt 0:00:06]} 28. Re4 {[%emt 0:03:15]} Qg5 {[%emt 0:00:12]} 29. Qc3 {[%emt 0:03:57]} Rd5 {[%emt 0:01:03]} 30. Bc4 {[%emt 0:04:27]} b5 {[%emt 0:01:11]} 31. Bxd5 {[%emt 0:00:11]} exd5 {[%emt 0:00:01]} 32. Re2 {[%emt 0:02:18]} h4 {[%emt 0:02:05]} 33. Qc5 {[%emt 0:01:15]} Be6 {[%emt 0:01:35]} 34. Qxb5 {[%emt 0:01:54]} h3 {[%emt 0:00:35]} 35. g4 {[%emt 0:03:20]} Nh4 {[%emt 0:00:16]} 36. Qb3 {[%emt 0:01:21]} Ng2 {[%emt 0:00:46]} 37. Nd3 {[%emt 0:00:45]} Ne3 {[%emt 0:00:41]} 38. Rde1 {[%emt 0:00:41]} Bxg4 {[%emt 0:01:23]} 39. f4 {[%emt 0:00:27]} Qh4 {[%emt 0:00:46]} 40. Rxe3 {[%emt 0:00:00]} Bf5 {[%emt 0:00:00]} 41. Ne5 {[%emt 0:02:53]} Be4 {[%emt 0:02:25]} 42. Rxe4 {[%emt 0:00:29]} 1-0

[Event "XXVII RUS-chT Women 2020"]
[Site "Sochi"]
[Date "2020.11.20"]
[Round "2.4"]
[White "Potapova, Margarita"]
[Black "Kovanova, Baira"]
[Result "1/2-1/2"]
[ECO "D35"]
[WhiteElo "2266"]
[BlackElo "2323"]
[Annotator "ChessBase"]
[PlyCount "107"]
[EventDate "2020.11.19"]
[EventType "team-tourn"]
[EventCountry "RUS"]
[SourceTitle "playchess.com"]
[Source "ChessBase"]
[SourceQuality "1"]
[TimeControl "40/5400+30:1800+30"]

1. d4 {[%emt 0:00:00]} Nf6 {[%emt 0:00:00]} 2. c4 {[%emt 0:00:00]} e6 {[%emt 0:00:00]} 3. Nc3 {[%emt 0:00:28]} d5 {[%emt 0:03:40]} 4. cxd5 {[%emt 0:04:06]} exd5 {[%emt 0:00:20]} 5. Bg5 {[%emt 0:00:05]} Be7 {[%emt 0:02:06]} 6. e3 {[%emt 0:00:15]} c6 {[%emt 0:01:26]} 7. Bd3 {[%emt 0:01:51]} Nbd7 {[%emt 0:03:09]} 8. Nge2 {[%emt 0:02:41]} h6 {[%emt 0:01:32]} 9. Bh4 {[%emt 0:02:03]} O-O {[%emt 0:07:22]} 10. Qc2 {[%emt 0:01:14]} Re8 {[%emt 0:00:07]} 11. O-O {[%emt 0:05:57]} Ne4 {[%emt 0:05:08]} 12. Bxe7 {[%emt 0:02:15]} Qxe7 {[%emt 0:00:41]} 13. Bxe4 {[%emt 0:16:40]} dxe4 14. d5 {[%emt 0:09:26]} Nc5 {[%emt 0:08:38]} 15. Rad1 {[%emt 0:08:01]} Bd7 {[%emt 0:03:56]} 16. Rd4 {[%emt 0:08:04]} Bf5 {[%emt 0:02:52]} 17. Nf4 {[%emt 0:04:00]} Rad8 {[%emt 0:04:12]} 18. Qd2 {[%emt 0:04:56]} g5 {[%emt 0:07:12]} 19. Nfe2 {[%emt 0:00:37]} Bg6 {[%emt 0:00:12]} 20. Nc1 {[%emt 0:03:41]} Qf6 {[%emt 0:13:19]} 21. Rd1 {[%emt 0:05:17]} Nd3 {[%emt 0:09:29]} 22. Nxe4 {[%emt 0:04:17]} Rxe4 {[%emt 0:05:31]} 23. Rxd3 {[%emt 0:12:17]} Re5 {[%emt 0:00:57]} 24. Rd4 {[%emt 0:00:43]} Rexd5 {[%emt 0:09:25]} 25. Qc3 {[%emt 0:01:03]} Qe6 {[%emt 0:01:00]} 26. Nb3 {[%emt 0:01:12]} b6 {[%emt 0:04:47]} 27. h3 {[%emt 0:00:53]} Be4 {[%emt 0:02:28]} 28. f3 {[%emt 0:00:52]} Bg6 {[%emt 0:02:05]} 29. e4 {[%emt 0:00:29]} Rxd4 {[%emt 0:01:29]} 30. Rxd4 {[%emt 0:00:04]} Rxd4 {[%emt 0:00:35]} 31. Nxd4 {[%emt 0:00:11]} Qxa2 {[%emt 0:00:59]} 32. Nxc6 {[%emt 0:00:06]} Qa1+ {[%emt 0:00:31]} 33. Kh2 {[%emt 0:00:31]} Kh7 {[%emt 0:00:28]} 34. Ne7 {[%emt 0:00:56]} h5 {[%emt 0:00:33]} 35. Nd5 {[%emt 0:00:54]} Qa4 {[%emt 0:00:24]} 36. Qe5 {[%emt 0:00:23]} Qc6 {[%emt 0:00:47]} 37. Qxg5 {[%emt 0:00:42]} Qd6+ {[%emt 0:00:11]} 38. f4 {[%emt 0:01:06]} Kg7 {[%emt 0:00:30]} 39. Ne3 {[%emt 0:00:18]} Kf8 {[%emt 0:00:16]} 40. e5 {[%emt 0:00:00]} Qd4 {[%emt 0:00:00]} 41. Qg3 {[%emt 0:06:33]} h4 {[%emt 0:03:36]} 42. Qf2 {[%emt 0:07:41]} a5 {[%emt 0:01:35]} 43. g3 {[%emt 0:01:11]} hxg3+ {[%emt 0:01:10]} 44. Kxg3 {[%emt 0:00:07]} a4 {[%emt 0:04:07]} 45. Ng4 {[%emt 0:06:29]} Qd3+ {[%emt 0:15:29]} 46. Kh4 {[%emt 0:02:33]} b5 {[%emt 0:00:11]} 47. Qc5+ {[%emt 0:00:53]} Kg7 {[%emt 0:01:13]} 48. e6 {[%emt 0:01:19]} Qe4 {[%emt 0:04:18]} 49. Qc3+ {[%emt 0:04:13]} Kf8 {[%emt 0:00:08]} 50. Qc5+ {[%emt 0:02:21]} Kg7 {[%emt 0:00:05]} 51. e7 {[%emt 0:01:15]} f6 {[%emt 0:00:28]} 52. Qa7 {[%emt 0:01:20]} Qe1+ {[%emt 0:00:54]} 53. Nf2 {[%emt 0:00:08]} Be8 {[%emt 0:01:32]} 54. Kg3 {[%emt 0:01:30]} 1/2-1/2

[Event "XXVII RUS-chT Women 2020"]
[Site "Sochi"]
[Date "2020.11.20"]
[Round "2.5"]
[White "Protopopova, Anastasiya"]
[Black "Shuvalova, Polina"]
[Result "1-0"]
[ECO "E20"]
[WhiteElo "2267"]
[BlackElo "2454"]
[Annotator "ChessBase"]
[PlyCount "79"]
[EventDate "2020.11.19"]
[EventType "team-tourn"]
[EventCountry "RUS"]
[SourceTitle "playchess.com"]
[Source "ChessBase"]
[SourceQuality "1"]
[TimeControl "40/5400+30:1800+30"]

1. d4 {[%emt 0:00:00]} Nf6 {[%emt 0:00:00]} 2. c4 {[%emt 0:00:00]} e6 {[%emt 0:00:00]} 3. Nc3 {[%emt 0:00:00]} Bb4 {[%emt 0:00:00]} 4. f3 {[%emt 0:00:30]} c5 {[%emt 0:00:08]} 5. d5 {[%emt 0:00:16]} b5 {[%emt 0:02:02]} 6. e4 {[%emt 0:00:10]} d6 {[%emt 0:00:41]} 7. Bd2 {[%emt 0:00:12]} Bxc3 {[%emt 0:04:39]} 8. Bxc3 {[%emt 0:00:08]} b4 {[%emt 0:00:16]} 9. Bd2 {[%emt 0:00:08]} a5 {[%emt 0:01:04]} 10. a3 {[%emt 0:04:48]} Ra6 {[%emt 0:10:03]} 11. Nh3 {[%emt 0:10:00]} O-O {[%emt 0:01:15]} 12. Be2 {[%emt 0:00:57]} exd5 {[%emt 0:10:51]} 13. cxd5 {[%emt 0:00:54]} Rb6 {[%emt 0:01:09]} 14. axb4 {[%emt 0:02:04]} axb4 {[%emt 0:03:35]} 15. O-O {[%emt 0:08:07]} Ba6 {[%emt 0:02:36]} 16. Bg5 {[%emt 0:02:57]} Bxe2 {[%emt 0:03:52]} 17. Qxe2 {[%emt 0:00:06]} Nbd7 {[%emt 0:00:06]} 18. Ra7 {[%emt 0:13:30]} h6 {[%emt 0:02:40]} 19. Bh4 {[%emt 0:02:45]} Qb8 {[%emt 0:03:05]} 20. Raa1 {[%emt 0:10:02]} Rc8 {[%emt 0:04:53]} 21. Rfc1 {[%emt 0:00:45]} Qb7 {[%emt 0:00:25]} 22. Nf2 {[%emt 0:06:24]} Ra8 {[%emt 0:09:01]} 23. Rxa8+ {[%emt 0:04:58]} Qxa8 {[%emt 0:00:04]} 24. Nd1 {[%emt 0:01:13]} Qa6 {[%emt 0:02:03]} 25. Qc2 {[%emt 0:02:52]} b3 {[%emt 0:12:41]} 26. Qc3 {[%emt 0:03:23]} Nh5 {[%emt 0:03:36]} 27. Bg3 {[%emt 0:07:38]} Nxg3 {[%emt 0:02:13]} 28. hxg3 {[%emt 0:00:01]} Ne5 {[%emt 0:01:15]} 29. Ne3 {[%emt 0:00:49]} Rb4 {[%emt 0:05:52]} 30. f4 {[%emt 0:04:03]} Nd7 {[%emt 0:00:36]} 31. Nf5 {[%emt 0:02:22]} f6 {[%emt 0:00:12]} 32. Qf3 {[%emt 0:00:33]} Nf8 {[%emt 0:03:14]} 33. e5 {[%emt 0:02:30]} fxe5 {[%emt 0:07:06]} 34. fxe5 {[%emt 0:01:55]} Ng6 {[%emt 0:00:05]} 35. exd6 {[%emt 0:00:33]} Rb7 {[%emt 0:03:18]} 36. Qe4 {[%emt 0:02:17]} Kh7 {[%emt 0:00:54]} 37. Kh2 {[%emt 0:02:53]} Rf7 {[%emt 0:01:21]} 38. Rxc5 {[%emt 0:00:42]} Qb6 {[%emt 0:01:37]} 39. Rc6 {[%emt 0:00:42]} Qd8 {[%emt 0:00:29]} 40. Nh4 {[%emt 0:00:00]} 1-0

[Event "XXVII RUS-chT Women 2020"]
[Site "Sochi"]
[Date "2020.11.20"]
[Round "2.6"]
[White "Kovalevskaya, Ekaterina"]
[Black "Lysenko, Margarita"]
[Result "1/2-1/2"]
[ECO "A05"]
[WhiteElo "2386"]
[BlackElo "2237"]
[Annotator "ChessBase"]
[PlyCount "112"]
[EventDate "2020.11.19"]
[EventType "team-tourn"]
[EventCountry "RUS"]
[SourceTitle "playchess.com"]
[Source "ChessBase"]
[SourceQuality "1"]
[TimeControl "40/5400+30:1800+30"]

1. Nf3 {[%emt 0:00:00]} Nf6 {[%emt 0:00:00]} 2. g3 {[%emt 0:00:00]} e6 {[%emt 0:00:00]} 3. Bg2 {[%emt 0:00:00]} d5 {[%emt 0:00:08]} 4. O-O {[%emt 0:00:11]} Be7 {[%emt 0:00:36]} 5. c4 {[%emt 0:02:08]} O-O {[%emt 0:00:19]} 6. b3 {[%emt 0:04:03]} b6 {[%emt 0:00:35]} 7. Bb2 {[%emt 0:01:32]} Bb7 {[%emt 0:00:13]} 8. d4 {[%emt 0:10:05]} Nbd7 {[%emt 0:03:07]} 9. Nc3 {[%emt 0:03:42]} c5 {[%emt 0:10:58]} 10. cxd5 {[%emt 0:07:45]} Nxd5 {[%emt 0:01:01]} 11. Nxd5 {[%emt 0:07:39]} Bxd5 {[%emt 0:00:30]} 12. Rc1 {[%emt 0:08:07]} Rc8 {[%emt 0:05:29]} 13. dxc5 {[%emt 0:02:55]} Nxc5 {[%emt 0:07:21]} 14. b4 {[%emt 0:05:33]} Bxf3 {[%emt 0:32:26]} 15. Bxf3 {[%emt 0:00:22]} Qxd1 {[%emt 0:00:18]} 16. Rfxd1 {[%emt 0:00:18]} Na4 {[%emt 0:00:26]} 17. Be5 {[%emt 0:20:11]} Bxb4 {[%emt 0:05:33]} 18. Rxc8 {[%emt 0:07:07]} Rxc8 {[%emt 0:00:46]} 19. Rd7 {[%emt 0:00:18]} a5 {[%emt 0:03:26]} 20. Rb7 {[%emt 0:01:23]} Nc5 {[%emt 0:11:06]} 21. Rxb6 {[%emt 0:07:24]} Nd7 {[%emt 0:00:32]} 22. Rb5 {[%emt 0:00:02]} Nxe5 {[%emt 0:01:04]} 23. Rxe5 {[%emt 0:00:02]} Rc1+ {[%emt 0:03:02]} 24. Kg2 {[%emt 0:00:01]} Ra1 {[%emt 0:00:50]} 25. Rb5 {[%emt 0:03:59]} Rxa2 {[%emt 0:06:04]} 26. Rb8+ {[%emt 0:00:24]} Bf8 {[%emt 0:00:11]} 27. Rb7 {[%emt 0:04:27]} Rc2 {[%emt 0:03:11]} 28. Ra7 {[%emt 0:00:41]} Rc5 {[%emt 0:00:32]} 29. e3 {[%emt 0:00:19]} h5 {[%emt 0:01:08]} 30. Bd1 {[%emt 0:00:21]} g6 {[%emt 0:01:47]} 31. Ba4 {[%emt 0:01:26]} Bd6 {[%emt 0:01:00]} 32. Ra6 {[%emt 0:02:27]} Bc7 {[%emt 0:01:09]} 33. Rc6 {[%emt 0:00:51]} Rxc6 {[%emt 0:00:07]} 34. Bxc6 {[%emt 0:00:02]} g5 {[%emt 0:01:20]} 35. Kf3 {[%emt 0:01:00]} Kg7 {[%emt 0:00:19]} 36. h3 {[%emt 0:00:08]} Bd6 {[%emt 0:00:45]} 37. g4 {[%emt 0:00:47]} h4 {[%emt 0:00:07]} 38. Ke4 {[%emt 0:00:12]} f6 {[%emt 0:00:49]} 39. Ba4 {[%emt 0:00:22]} Kf7 {[%emt 0:00:25]} 40. f3 {[%emt 0:00:00]} Ke7 {[%emt 0:00:00]} 41. Bb3 {[%emt 0:09:39]} Bb4 {[%emt 0:01:32]} 42. Ba4 {[%emt 0:06:04]} Kd6 {[%emt 0:00:19]} 43. Bb3 {[%emt 0:00:15]} Bd2 {[%emt 0:00:44]} 44. Kd3 {[%emt 0:02:58]} Bc1 {[%emt 0:00:20]} 45. Kd4 {[%emt 0:05:24]} f5 {[%emt 0:20:40]} 46. Kd3 {[%emt 0:00:15]} Ke5 {[%emt 0:07:10]} 47. Ba4 {[%emt 0:00:22]} fxg4 {[%emt 0:01:55]} 48. fxg4 {[%emt 0:00:02]} Kd5 {[%emt 0:01:32]} 49. Bb3+ {[%emt 0:00:06]} Kd6 {[%emt 0:00:03]} 50. Ba4 {[%emt 0:03:17]} Kc5 {[%emt 0:00:49]} 51. Bb3 {[%emt 0:00:07]} Kb4 {[%emt 0:00:57]} 52. Bxe6 {[%emt 0:00:08]} a4 {[%emt 0:00:31]} 53. Bg8 {[%emt 0:01:04]} a3 {[%emt 0:00:36]} 54. Ba2 {[%emt 0:00:36]} Kc5 {[%emt 0:00:16]} 55. Bg8 {[%emt 0:00:15]} Kd6 {[%emt 0:00:41]} 56. Ke4 {[%emt 0:00:38]} Bd2 {[%emt 0:00:14]} 1/2-1/2

[Event "XXVII RUS-chT Women 2020"]
[Site "Sochi"]
[Date "2020.11.20"]
[Round "2.7"]
[White "Sudakova, Irina"]
[Black "Voit, Daria"]
[Result "0-1"]
[ECO "B12"]
[WhiteElo "2288"]
[BlackElo "2353"]
[Annotator "NA"]
[PlyCount "100"]
[EventDate "2020.11.19"]
[EventType "team-tourn"]
[EventCountry "RUS"]
[SourceTitle "playchess.com"]
[Source "ChessBase"]
[SourceQuality "1"]
[TimeControl "40/5400+30:1800+30"]

1. e4 {[%emt 0:00:00]} c6 {[%emt 0:00:00]} 2. d4 {[%emt 0:00:22]} d5 {[%emt 0:00:00]} 3. e5 {[%emt 0:00:37]} Bf5 {[%emt 0:00:00]} 4. Nc3 {[%emt 0:03:41]} Qb6 {[%emt 0:10:48]} 5. Nce2 {[%emt 0:06:32]} e6 {[%emt 0:01:51]} 6. Ng3 {[%emt 0:08:09]} Bg6 {[%emt 0:01:13]} 7. h4 {[%emt 0:14:42]} h6 {[%emt 0:01:27]} 8. Nf3 {[%emt 0:00:44]} c5 {[%emt 0:01:24]} 9. Bd3 $15 {[%emt 0:04:38]} Bxd3 {[%emt 0:07:13]} 10. Qxd3 {[%emt 0:00:07]} cxd4 {[%emt 0:00:26]} 11. Nxd4 {[%emt 0:01:23]} Bc5 {[%emt 0:02:52]} 12. Be3 {[%emt 0:04:57]} Nc6 {[%emt 0:05:59]} 13. Nxc6 {[%emt 0:03:15]} Bxe3 {[%emt 0:00:27]} 14. Qxe3 {[%emt 0:00:26]} Qxe3+ {[%emt 0:01:21]} 15. fxe3 {[%emt 0:00:02]} bxc6 {[%emt 0:00:07]} 16. e4 {[%emt 0:08:51]} Ne7 {[%emt 0:02:55]} 17. h5 {[%emt 0:01:58]} d4 {[%emt 0:06:19]} 18. Ne2 {[%emt 0:06:46]} c5 {[%emt 0:02:34]} 19. b4 {[%emt 0:03:02]} cxb4 {[%emt 0:09:46]} 20. Nxd4 {[%emt 0:00:18]} Rc8 {[%emt 0:00:53]} 21. Ke2 {[%emt 0:04:08]} O-O {[%emt 0:04:32]} 22. a3 {[%emt 0:06:34]} Rfd8 {[%emt 0:03:11]} 23. Rhd1 {[%emt 0:01:51]} Rc4 {[%emt 0:01:01]} 24. Ke3 {[%emt 0:02:00]} bxa3 {[%emt 0:10:59]} 25. Rd3 {[%emt 0:01:39]} Ra4 {[%emt 0:00:17]} 26. Nb5 {[%emt 0:01:44]} Rxd3+ {[%emt 0:01:41]} 27. cxd3 {[%emt 0:02:50]} Nc6 {[%emt 0:07:36]} 28. Rxa3 {[%emt 0:05:35]} Rxa3 {[%emt 0:00:11]} 29. Nxa3 {[%emt 0:00:02]} Nxe5 {[%emt 0:00:08]} 30. d4 {[%emt 0:01:02]} Ng4+ {[%emt 0:01:10]} 31. Kf4 {[%emt 0:00:41]} Nf6 {[%emt 0:00:04]} 32. g4 {[%emt 0:00:57]} a5 {[%emt 0:02:34]} 33. Kf3 {[%emt 0:03:20]} Kf8 {[%emt 0:00:32]} 34. Kf4 {[%emt 0:00:12]} Ke7 {[%emt 0:00:41]} 35. Kf3 {[%emt 0:00:10]} a4 {[%emt 0:01:49]} 36. Kf4 {[%emt 0:00:15]} Kd7 {[%emt 0:01:59]} 37. Kf3 {[%emt 0:01:47]} Kc7 {[%emt 0:07:08]} 38. Kf4 {[%emt 0:00:40]} Kc6 {[%emt 0:00:05]} 39. Kf3 {[%emt 0:00:28]} Kb6 {[%emt 0:01:13]} 40. Kf4 {[%emt 0:00:00]} Ka5 {[%emt 0:00:00]} 41. Nc2 {[%emt 0:00:24]} Kb5 {[%emt 0:00:46]} 42. Ke5 {[%emt 0:01:54]} Kc4 {[%emt 0:03:48]} 43. Na3+ {[%emt 0:00:57]} Kb4 {[%emt 0:09:41]} 44. Nb1 {[%emt 0:00:43]} Nxg4+ {[%emt 0:01:58]} 45. Kd6 {[%emt 0:00:14]} Nf6 {[%emt 0:00:49]} 46. Ke7 {[%emt 0:00:59]} Nxh5 {[%emt 0:02:10]} 47. Kxf7 {[%emt 0:00:20]} Nf4 {[%emt 0:00:15]} 48. Kxg7 {[%emt 0:00:53]} h5 {[%emt 0:00:11]} 49. Kh6 {[%emt 0:00:15]} h4 {[%emt 0:00:04]} 50. Kg5 {[%emt 0:00:07]} h3 {[%emt 0:00:04]} 0-1

[Event "XXVII RUS-chT Women 2020"]
[Site "Sochi"]
[Date "2020.11.20"]
[Round "2.8"]
[White "Dordzhieva, Dinara"]
[Black "Smirnova, Ekaterina"]
[Result "1/2-1/2"]
[ECO "D11"]
[WhiteElo "2352"]
[BlackElo "2239"]
[Annotator "NA"]
[PlyCount "73"]
[EventDate "2020.11.19"]
[EventType "team-tourn"]
[EventCountry "RUS"]
[SourceTitle "playchess.com"]
[Source "ChessBase"]
[SourceQuality "1"]
[TimeControl "40/5400+30:1800+30"]

1. d4 {[%emt 0:00:00]} d5 {[%emt 0:00:00]} 2. c4 {[%emt 0:00:00]} c6 {[%emt 0:00:00]} 3. Nf3 {[%emt 0:00:00]} Nf6 {[%emt 0:00:00]} 4. g3 {[%emt 0:00:00]} Bf5 {[%emt 0:03:11]} 5. Nc3 {[%emt 0:00:00]} e6 {[%emt 0:00:11]} 6. Nh4 {[%emt 0:00:14]} Be4 {[%emt 0:00:43]} 7. f3 {[%emt 0:00:09]} Bg6 {[%emt 0:00:04]} 8. Qb3 {[%emt 0:01:06]} Qb6 {[%emt 0:00:49]} 9. Nxg6 {[%emt 0:01:22]} hxg6 {[%emt 0:00:15]} 10. c5 {[%emt 0:00:05]} Qc7 {[%emt 0:00:56]} 11. Bf4 {[%emt 0:00:10]} Qc8 {[%emt 0:00:16]} 12. e4 {[%emt 0:01:08]} Nh5 {[%emt 0:08:13]} 13. O-O-O {[%emt 0:17:16]} (13. Ne2 $11) 13... Nxf4 {[%emt 0:00:46]} 14. gxf4 {[%emt 0:00:06]} Be7 {[%emt 0:02:08]} 15. Bd3 {[%emt 0:03:19]} Nd7 {[%emt 0:06:41]} 16. Rde1 {[%emt 0:10:57]} Qc7 {[%emt 0:10:50]} 17. Kb1 {[%emt 0:03:30]} dxe4 {[%emt 0:02:24]} 18. fxe4 {[%emt 0:00:40]} O-O-O {[%emt 0:00:44]} 19. Bc2 {[%emt 0:18:11]} Nf6 {[%emt 0:07:12]} 20. Qa4 {[%emt 0:08:00]} Kb8 {[%emt 0:04:14]} 21. e5 $17 {[%emt 0:08:21]} Nd5 {[%emt 0:00:10]} 22. Ne4 {[%emt 0:00:20]} Nxf4 {[%emt 0:01:25]} 23. Nd6 {[%emt 0:06:17]} Bxd6 {[%emt 0:00:26]} 24. exd6 {[%emt 0:01:34]} Qd7 {[%emt 0:00:12]} 25. Re3 {[%emt 0:00:45]} Rh4 {[%emt 0:06:19]} 26. Ra3 {[%emt 0:03:02]} a6 {[%emt 0:00:10]} 27. Rb3 {[%emt 0:02:37]} Ka7 {[%emt 0:16:41]} 28. Re1 {[%emt 0:06:03]} Rdh8 {[%emt 0:02:28]} 29. Be4 {[%emt 0:01:16]} Rxh2 {[%emt 0:03:52]} 30. Rb6 {[%emt 0:01:48]} Nd5 {[%emt 0:02:36]} 31. Bxd5 {[%emt 0:01:53]} exd5 {[%emt 0:00:06]} 32. Rxa6+ {[%emt 0:01:32]} bxa6 {[%emt 0:00:02]} 33. Re7 {[%emt 0:00:03]} Rh1+ {[%emt 0:01:19]} 34. Kc2 {[%emt 0:00:04]} R1h2+ {[%emt 0:02:02]} 35. Kb1 {[%emt 0:01:25]} Rh1+ {[%emt 0:00:05]} 36. Kc2 {[%emt 0:00:26]} R1h2+ {[%emt 0:00:03]} 37. Kb1 {[%emt 0:01:30]} 1/2-1/2